fUST/lending_fUST_20250505
["ID","MTS","AMOUNT","RATE_DAILY","PERIOD"]
[359922098,1746425446942,-1044.54,0.00039452,14]
[359922099,1746425446951,-492.38,0.00039452,14]
[359922101,1746425446961,-419.38,0.00039452,14]
[359922102,1746425446971,-400.7,0.00039452,14]
[359922104,1746425446981,-400.0,0.00039452,14]
[359922106,1746425446990,-439.04,0.00039452,14]
[359922107,1746425447000,-756.14,0.00039452,14]
[359922108,1746425447010,-1741.6,0.00039452,14]
[359922109,1746425447019,-550.48,0.00039452,14]
[359922110,1746425447028,-400.43,0.00039452,2]
[359922111,1746425447038,-151.0,0.00039452,14]
[359922112,1746425447048,-400.0,0.00039452,14]
[359922113,1746425447058,-400.0,0.00039452,14]
[359922114,1746425447067,-741.79,0.00039452,14]
[359922115,1746425447077,-1053.31,0.00039452,14]
[359922116,1746425447085,-400.0,0.00039452,14]
[359922117,1746425447095,-695.848847,0.00039452,2]
[359922118,1746425447104,-512.77,0.00039452,14]
[359922119,1746425447113,-1183.98,0.00039452,14]
[359922120,1746425447122,-695.848847,0.00039452,2]
[359922121,1746425447131,-474.27,0.00039452,14]
[359922122,1746425447144,-6235.82931605,0.0003959,2]
[359922123,1746425447153,-151.0,0.000396,16]
[359922124,1746425447162,-176.85064414,0.00039668,2]
[359922125,1746425447172,-159.55424488,0.00039693,41]
[359922126,1746425447182,-559.63,0.000397,7]
[359922127,1746425447192,-151.0,0.000397,16]
[359922128,1746425447201,-5670.16435778,0.00039716,3]
[359922129,1746425447210,-400.0,0.00039726,14]
[359922130,1746425447220,-413.29,0.00039726,14]
[359922131,1746425447230,-592.7,0.00039726,14]
[359922132,1746425447239,-317.0,0.00039726,14]
[359922133,1746425447249,-400.0,0.00039726,14]
[359922134,1746425447258,-500.4,0.00039726,14]
[359922135,1746425447268,-1197.65,0.00039726,14]
[359922136,1746425447277,-400.0,0.00039726,14]
[359922137,1746425447286,-416.52,0.00039726,14]
[359922138,1746425447295,-400.0,0.00039726,14]
[359922139,1746425447305,-1044.54,0.00039726,14]
[359922140,1746425447314,-492.38,0.00039726,14]
[359922141,1746425447324,-400.7,0.00039726,14]
[359922142,1746425447333,-400.0,0.00039726,14]
[359922143,1746425447343,-439.04,0.00039726,14]
[359922144,1746425447354,-756.14,0.00039726,14]
[359922145,1746425447364,-1741.6,0.00039726,14]
[359922146,1746425447374,-550.48,0.00039726,14]
[359922147,1746425447383,-400.43,0.00039726,2]
[359922148,1746425447393,-400.0,0.00039726,14]
[359922149,1746425447402,-400.0,0.00039726,14]
[359922150,1746425447411,-741.79,0.00039726,14]
[359922151,1746425447421,-1053.31,0.00039726,14]
[359922152,1746425447431,-400.0,0.00039726,14]
[359922153,1746425447440,-512.77,0.00039726,14]
[359922154,1746425447450,-1183.98,0.00039726,14]
[359922155,1746425447459,-474.27,0.00039726,14]
[359922156,1746425447468,-823.73,0.000398,120]
[359922157,1746425447479,-157.96,0.000398,31]
[359922158,1746425447489,-157.96,0.000398,31]
[359922159,1746425447499,-2628.56161409,0.0003989,2]
[359922160,1746425447508,-179.09070008,0.000399,6]
[359922161,1746425447518,-342.30398618,0.0003992,30]
[359922162,1746425447527,-160.0,0.00039931,2]
[359922163,1746425447537,-159.55424488,0.00039934,41]
[359922164,1746425447547,-198.98,0.00039951,15]
[359922165,1746425447557,-151.0,0.0003998,14]
[359922166,1746425447568,-17010.4930733,0.0003998,3]
[359922167,1746425447578,-130716.22117871,0.0003999,2]
[359922168,1746425447588,-151.0,0.0003999,14]
[359922169,1746425447598,-28350.8217889,0.0003999,3]
[359922170,1746425447607,-151.0,0.0003999,14]
[359922171,1746425447617,-695.848847,0.0003999,2]
[359922172,1746425447627,-695.848847,0.0003999,2]
[359922173,1746425447636,-139242.64716067,0.0004,30]
[359922174,1746425447645,-505.22778216,0.0004,30]
[359922175,1746425447654,-19750.03523927,0.0004,7]
[359922176,1746425447664,-288.38037,0.0004,120]
[359922177,1746425447673,-1000.0,0.0004,120]
[359922178,1746425447683,-357280.85104577,0.0004,30]
[359922179,1746425447693,-500.0,0.0004,120]
[359922180,1746425447702,-615.87958201,0.0004,3]
[359922181,1746425447712,-818.03,0.0004,30]
[359922182,1746425447722,-841.77443764,0.0004,7]
[359922183,1746425447732,-413.29,0.0004,14]
[359922184,1746425447741,-592.7,0.0004,14]
[359922185,1746425447751,-400.0,0.0004,14]
[359922186,1746425447760,-500.4,0.0004,14]
[359922187,1746425447770,-1197.65,0.0004,14]
[359922188,1746425447779,-400.0,0.0004,14]
[359922189,1746425447789,-416.52,0.0004,14]
[359922190,1746425447798,-400.0,0.0004,14]
[359922191,1746425447807,-1044.54,0.0004,14]
[359922192,1746425447817,-492.38,0.0004,14]
[359922193,1746425447827,-400.7,0.0004,14]
[359922194,1746425447837,-400.0,0.0004,14]
[359922195,1746425447847,-439.04,0.0004,14]
[359922196,1746425447857,-756.14,0.0004,14]
[359922197,1746425447867,-1741.6,0.0004,14]
[359922198,1746425447876,-550.48,0.0004,14]
[359922199,1746425447886,-400.43,0.0004,2]
[359922200,1746425447895,-217.117067,0.0004,14]
[359922201,1746425447905,-400.0,0.0004,14]
[359922202,1746425447915,-400.0,0.0004,14]
[359922203,1746425447924,-741.79,0.0004,14]
[359922204,1746425447934,-1053.31,0.0004,14]
[359922205,1746425447943,-400.0,0.0004,14]
[359922206,1746425447953,-695.848847,0.0004,2]
[359922207,1746425447962,-512.77,0.0004,14]
[359922208,1746425447972,-1183.98,0.0004,14]
[359922209,1746425447983,-695.84884448,0.0004,2]
[359922210,1746425447992,-474.27,0.0004,14]
[359922211,1746425448002,-642.64,0.00040165,120]
[359922212,1746425448012,-159.55424488,0.00040176,42]
[359922213,1746425448022,-841.77443764,0.0004024,2]
[359922214,1746425448032,-160.0,0.0004024,2]
[359922215,1746425448041,-413.29,0.00040273,14]
[359922216,1746425448051,-592.7,0.00040273,14]
[359922217,1746425448061,-400.0,0.00040273,14]
[359922218,1746425448070,-500.4,0.00040273,14]
[359922219,1746425448080,-1197.65,0.00040273,14]
[359922220,1746425448090,-400.0,0.00040273,14]
[359922221,1746425448100,-416.52,0.00040273,14]
[359922222,1746425448109,-400.0,0.00040273,14]
[359922223,1746425448119,-1044.54,0.00040273,14]
[359922224,1746425448129,-492.38,0.00040273,14]
[359922225,1746425448143,-400.7,0.00040273,14]
[359922226,1746425448152,-400.0,0.00040273,14]
[359922227,1746425448162,-439.04,0.00040273,14]
[359922228,1746425448171,-756.14,0.00040273,14]
[359922229,1746425448180,-1741.6,0.00040273,14]
[359922230,1746425448190,-550.48,0.00040273,14]
[359922231,1746425448199,-400.43,0.00040273,2]
[359922232,1746425448209,-400.0,0.00040273,14]
[359922233,1746425448218,-400.0,0.00040273,14]
[359922234,1746425448231,-741.79,0.00040273,14]
[359922235,1746425448240,-1053.31,0.00040273,14]
[359922236,1746425448250,-400.0,0.00040273,14]
[359922237,1746425448260,-512.77,0.00040273,14]
[359922238,1746425448270,-1183.98,0.00040273,14]
[359922239,1746425448360,-474.27,0.00040273,14]
[359922240,1746425448370,-3000.0,0.00040274,2]
[359922241,1746425448379,-2000.0,0.000403,26]
[359922242,1746425448389,-918.66,0.000403,30]
[359922243,1746425448398,-176.85064414,0.0004036,28]
[359922244,1746425448408,-642.64,0.00040365,120]
[359922245,1746425448417,-535.60928266,0.00040399,15]
[359922246,1746425448427,-160.0,0.000404,62]
[359922247,1746425448436,-1809.22686462,0.0004041,30]
[359922248,1746425448446,-159.55424488,0.00040417,42]
[359922249,1746425448455,-84245.69754382,0.0004042,30]
[359922250,1746425448599,-447.22891845,0.00035616,14]
[359922251,1746425448609,-400.0,0.00035616,14]
[359922252,1746425448620,-400.0,0.00035616,14]
[359922253,1746425448629,-14555.36345529,0.0004042,30]
[359922254,1746425448641,-2519.3797251,0.0004042,30]
[359922255,1746425463402,500.0,0.00034795,2]
[359922265,1746426354154,-210.0,0.00027,7]
[359922266,1746426354175,-232.396919,0.00027397,2]
[359922267,1746426354195,-1000.0,0.0003,7]
[359922268,1746426354215,-232.396919,0.00033165,2]
[359922269,1746426354235,-170.846285,0.00034269,2]
[359922270,1746426354255,-488.8518343,0.00034795,2]
[359922275,1746426435107,-11.1481657,0.00034795,2]
[359922276,1746426435130,-167.0110091,0.00035516,2]
[359922277,1746426435152,-3435.88,0.000356,2]
[359922278,1746426435192,-289.16091539,0.00035615,7]
[359922279,1746426435215,-500.0,0.00035615,7]
[359922280,1746426435239,-299.5140633,0.00035615,7]
[359922281,1746426435260,-401.17642277,0.00035616,14]
[359922282,1746426435282,-255.51075935,0.00035616,14]
[359922283,1746426435302,-400.0,0.00035616,14]
[359922284,1746426435324,-183.8169081,0.00035616,14]
[359922286,1746426442104,-404.15430126,0.00035616,14]
[359922287,1746426442125,-400.0,0.00035616,14]
[359922288,1746426442146,-400.0,0.00035616,14]
[359922289,1746426442166,-400.0,0.00035616,14]
[359922290,1746426442186,-400.0,0.00035616,14]
[359922291,1746426442206,-400.0,0.00035616,14]
[359922292,1746426442226,-502.91540425,0.00035616,14]
[359922293,1746426442246,-400.0,0.00035616,14]
[359922294,1746426442266,-545.53292059,0.00035616,14]
[359922295,1746426442287,-133.37444914,0.00035616,14]
[359922296,1746426443109,-266.62555086,0.00035616,14]
[359922297,1746426443131,-234.3320117,0.00035616,14]
[359922298,1746426443152,-400.0,0.00035616,14]
[359922299,1746426443172,-400.0,0.00035616,14]
[359922300,1746426443193,-64.4764499,0.00035616,14]
[359922301,1746426469921,2547.90399122,0.00018,2]
[359922302,1746426519189,2953.76365463,0.00018,2]
[359922303,1746426519224,3424.83772835,0.00018,2]
[359922305,1746426551275,-400.0,0.00034999,2]
[359922306,1746426551296,-158480.43022315,0.00035,2]
[359922307,1746426592692,104.33717249,0.000329,2]
[359922308,1746426592716,45.66282751,0.000329,2]
[359922312,1746426630606,170.846285,0.0003276,2]
[359922373,1746426638708,-212.97098329,0.00035516,2]
[359922374,1746426638718,-167.01100909,0.00035516,2]
[359922375,1746426638728,-120.01800762,0.00035615,2]
[359922376,1746426638739,-279.98199238,0.00035615,2]
[359922377,1746426638750,-1200.0,0.00035615,3]
[359922378,1746426638760,-400.0,0.00035615,3]
[359922379,1746426638769,-500.0,0.00035615,7]
[359922380,1746426638779,-568.68380149,0.00035615,7]
[359922381,1746426638789,-5447.40008219,0.00035616,2]
[359922382,1746426638799,-335.5235501,0.00035616,14]
[359922383,1746426638808,-400.0,0.00035616,14]
[359922384,1746426638818,-400.0,0.00035616,14]
[359922385,1746426638827,-411.27,0.00035616,14]
[359922386,1746426638836,-400.0,0.00035616,14]
[359922387,1746426638846,-400.0,0.00035616,14]
[359922388,1746426638855,-400.0,0.00035616,14]
[359922389,1746426638866,-400.0,0.00035616,14]
[359922390,1746426638876,-500.0,0.00035616,14]
[359922391,1746426638885,-400.0,0.00035616,14]
[359922392,1746426638895,-401.35149075,0.00035616,14]
[359922393,1746426638905,-400.0,0.00035616,14]
[359922394,1746426638915,-400.0,0.00035616,14]
[359922395,1746426638925,-400.0,0.00035616,14]
[359922396,1746426638935,-503.71660098,0.00035616,14]
[359922397,1746426638945,-400.67,0.00035616,14]
[359922398,1746426638954,-400.0,0.00035616,14]
[359922399,1746426638964,-400.0,0.00035616,14]
[359922400,1746426638974,-400.0,0.00035616,14]
[359922401,1746426638985,-400.0,0.00035616,14]
[359922402,1746426638994,-230.61111892,0.00035616,14]
[359922403,1746426639004,-400.0,0.00035616,14]
[359922404,1746426639013,-404.5808712,0.00035616,14]
[359922405,1746426639024,-400.0,0.00035616,14]
[359922406,1746426639035,-400.0,0.00035616,14]
[359922407,1746426639045,-400.0,0.00035616,14]
[359922408,1746426639054,-500.0,0.00035616,14]
[359922409,1746426639063,-400.0,0.00035616,14]
[359922410,1746426639074,-504.3,0.00035616,14]
[359922411,1746426639083,-400.0,0.00035616,14]
[359922412,1746426639093,-400.0,0.00035616,14]
[359922413,1746426639103,-400.0,0.00035616,14]
[359922414,1746426639113,-400.0,0.00035616,14]
[359922415,1746426639122,-400.0,0.00035616,14]
[359922416,1746426639132,-300.88658357,0.00035616,14]
[359922417,1746426639142,-488.49,0.00035616,14]
[359922418,1746426639152,-400.0,0.00035616,14]
[359922419,1746426639161,-400.0,0.00035616,14]
[359922420,1746426639171,-407.01364488,0.00035616,14]
[359922421,1746426639180,-501.5237928,0.00035616,14]
[359922422,1746426639190,-400.0,0.00035616,14]
[359922423,1746426639199,-267.57446407,0.00035616,14]
[359922424,1746426639209,-332.02591164,0.00035616,14]
[359922425,1746426639218,-500.0,0.00035616,14]
[359922426,1746426639228,-400.0,0.00035616,14]
[359922427,1746426639238,-400.0,0.00035616,14]
[359922428,1746426639247,-400.0,0.00035616,14]
[359922429,1746426639257,-501.37898309,0.00035616,14]
[359922430,1746426639266,-439.65,0.00035616,14]
[359922431,1746426639276,-400.0,0.00035616,14]
[359922432,1746426639285,-400.0,0.00035616,14]
[359922433,1746426639294,-509.16735731,0.00035616,14]
[359922434,1746426639304,-400.0,0.00035616,14]
[359922435,1746426639313,-474.38,0.00035616,14]
[359922436,1746426639323,-506.20906952,0.00035616,14]
[359922437,1746426639333,-400.0,0.00035616,14]
[359922438,1746426639343,-400.0,0.00035616,14]
[359922439,1746426639352,-400.0,0.00035616,14]
[359922440,1746426639361,-477.41008178,0.00035616,14]
[359922441,1746426639371,-400.0,0.00035616,14]
[359922442,1746426639380,-400.0,0.00035616,14]
[359922443,1746426639390,-402.68194272,0.00035616,14]
[359922444,1746426639400,-400.0,0.00035616,14]
[359922445,1746426639409,-507.28154884,0.00035616,14]
[359922446,1746426639419,-400.0,0.00035616,14]
[359922447,1746426639428,-400.0,0.00035616,14]
[359922448,1746426639438,-400.0,0.00035616,14]
[359922449,1746426639447,-400.0,0.00035616,14]
[359922450,1746426639456,-400.0,0.00035616,14]
[359922451,1746426639466,-483.74,0.00035616,14]
[359922452,1746426639475,-400.0,0.00035616,14]
[359922453,1746426639485,-400.0,0.00035616,14]
[359922454,1746426639494,-400.0,0.00035616,14]
[359922455,1746426639504,-400.0,0.00035616,14]
[359922456,1746426639513,-401.72,0.00035616,14]
[359922457,1746426639523,-400.0,0.00035616,14]
[359922458,1746426639533,-400.0,0.00035616,14]
[359922459,1746426639542,-400.0,0.00035616,14]
[359922460,1746426639552,-400.0,0.00035616,14]
[359922461,1746426639561,-500.0,0.00035616,14]
[359922462,1746426639571,-400.0,0.00035616,14]
[359922463,1746426639580,-400.0,0.00035616,14]
[359922464,1746426639590,-400.0,0.00035616,14]
[359922465,1746426639599,-400.0,0.00035616,14]
[359922466,1746426639609,-415.16043103,0.00035616,14]
[359922467,1746426639618,-400.0,0.00035616,14]
[359922468,1746426639628,-400.0,0.00035616,14]
[359922469,1746426639638,-400.0,0.00035616,14]
[359922470,1746426639647,-400.0,0.00035616,14]
[359922471,1746426639657,-400.0,0.00035616,14]
[359922472,1746426639666,-403.18437504,0.00035616,14]
[359922473,1746426639680,-400.0,0.00035616,14]
[359922474,1746426639690,-400.0,0.00035616,14]
[359922475,1746426639699,-400.0,0.00035616,14]
[359922476,1746426639708,-400.0,0.00035616,14]
[359922477,1746426639718,-400.0,0.00035616,14]
[359922478,1746426639727,-404.78731066,0.00035616,14]
[359922479,1746426639736,-500.0,0.00035616,14]
[359922480,1746426639746,-472.88,0.00035616,14]
[359922481,1746426639756,-400.0,0.00035616,14]
[359922482,1746426639766,-400.0,0.00035616,14]
[359922483,1746426639775,-400.0,0.00035616,14]
[359922484,1746426639784,-200.07702048,0.00035616,14]
[359922485,1746426639794,-400.0,0.00035616,14]
[359922486,1746426639803,-500.0,0.00035616,15]
[359922487,1746426639813,-400.0,0.00035616,14]
[359922488,1746426639822,-400.0,0.00035616,14]
[359922489,1746426639831,-168.27680601,0.00035616,14]
[359922490,1746426639841,-400.0,0.00035616,14]
[359922491,1746426639850,-400.0,0.00035616,14]
[359922492,1746426639860,-501.89,0.00035616,14]
[359922493,1746426640054,-400.0,0.00035616,14]
[359922494,1746426640071,-400.0,0.00035616,14]
[359922495,1746426640082,-400.0,0.00035616,14]
[359922496,1746426640091,-405.45610985,0.00035616,14]
[359922497,1746426640101,-400.0,0.00035616,14]
[359922498,1746426640110,-400.0,0.00035616,14]
[359922499,1746426640120,-400.0,0.00035616,14]
[359922500,1746426640130,-400.0,0.00035616,14]
[359922501,1746426640140,-400.0,0.00035616,14]
[359922502,1746426640150,-400.0,0.00035616,14]
[359922503,1746426640160,-400.0,0.00035616,14]
[359922504,1746426640169,-400.0,0.00035616,14]
[359922505,1746426640179,-400.0,0.00035616,14]
[359922506,1746426640189,-400.0,0.00035616,14]
[359922507,1746426640199,-400.0,0.00035616,14]
[359922508,1746426640208,-400.0,0.00035616,14]
[359922509,1746426640218,-400.0,0.00035616,14]
[359922510,1746426640227,-400.0,0.00035616,14]
[359922511,1746426640237,-400.0,0.00035616,14]
[359922512,1746426640248,-400.0,0.00035616,14]
[359922513,1746426640258,-400.0,0.00035616,14]
[359922514,1746426640267,-400.0,0.00035616,14]
[359922515,1746426640277,-400.0,0.00035616,14]
[359922516,1746426640288,-400.0,0.00035616,14]
[359922517,1746426640298,-400.0,0.00035616,14]
[359922518,1746426640308,-400.0,0.00035616,14]
[359922520,1746426640317,-400.0,0.00035616,14]
[359922521,1746426640327,-400.0,0.00035616,14]
[359922522,1746426640336,-400.0,0.00035616,14]
[359922523,1746426640347,-400.0,0.00035616,14]
[359922524,1746426640357,-400.0,0.00035616,14]
[359922525,1746426640367,-400.0,0.00035616,14]
[359922526,1746426640377,-400.0,0.00035616,14]
[359922527,1746426640386,-400.0,0.00035616,14]
[359922528,1746426640395,-244.21115541,0.00035616,14]
[359922529,1746426640405,-527.83,0.00035616,14]
[359922530,1746426640415,-400.0,0.00035616,14]
[359922531,1746426640424,-400.0,0.00035616,14]
[359922532,1746426640434,-400.0,0.00035616,14]
[359922533,1746426640444,-400.0,0.00035616,14]
[359922534,1746426640454,-400.0,0.00035616,14]
[359922535,1746426640464,-400.0,0.00035616,14]
[359922536,1746426640473,-400.0,0.00035616,14]
[359922537,1746426640483,-400.0,0.00035616,14]
[359922538,1746426640493,-400.0,0.00035616,14]
[359922539,1746426640503,-400.0,0.00035616,14]
[359922540,1746426640512,-430.69767257,0.00035616,14]
[359922541,1746426640522,-400.0,0.00035616,14]
[359922542,1746426640532,-400.0,0.00035616,14]
[359922543,1746426640541,-600.69,0.00035616,14]
[359922544,1746426640551,-400.0,0.00035616,14]
[359922545,1746426640560,-400.0,0.00035616,14]
[359922546,1746426640570,-400.0,0.00035616,14]
[359922547,1746426640579,-400.0,0.00035616,14]
[359922549,1746426640588,-879.3,0.00035616,14]
[359922550,1746426640597,-400.0,0.00035616,14]
[359922551,1746426640607,-400.0,0.00035616,14]
[359922552,1746426640617,-400.0,0.00035616,14]
[359922553,1746426640627,-400.0,0.00035616,14]
[359922554,1746426640637,-400.0,0.00035616,14]
[359922555,1746426640647,-400.0,0.00035616,14]
[359922556,1746426640657,-400.0,0.00035616,14]
[359922557,1746426640666,-400.0,0.00035616,14]
[359922558,1746426640680,-400.0,0.00035616,14]
[359922559,1746426640689,-400.0,0.00035616,14]
[359922560,1746426640699,-400.0,0.00035616,14]
[359922561,1746426640710,-400.0,0.00035616,14]
[359922562,1746426640721,-400.0,0.00035616,14]
[359922563,1746426640732,-400.0,0.00035616,14]
[359922564,1746426640742,-400.0,0.00035616,14]
[359922565,1746426640753,-400.0,0.00035616,2]
[359922566,1746426640764,-400.0,0.00035616,14]
[359922567,1746426640773,-400.0,0.00035616,14]
[359922568,1746426640783,-400.0,0.00035616,14]
[359922569,1746426640793,-400.0,0.00035616,14]
[359922570,1746426640803,-400.0,0.00035616,14]
[359922571,1746426640812,-400.0,0.00035616,14]
[359922572,1746426640822,-400.0,0.00035616,14]
[359922573,1746426640832,-400.0,0.00035616,14]
[359922574,1746426640841,-400.0,0.00035616,14]
[359922575,1746426640851,-752.89,0.00035616,14]
[359922576,1746426640861,-400.0,0.00035616,14]
[359922577,1746426640870,-400.0,0.00035616,14]
[359922578,1746426640880,-400.0,0.00035616,14]
[359922579,1746426640890,-400.0,0.00035616,14]
[359922580,1746426640900,-400.0,0.00035616,14]
[359922581,1746426640909,-249.17890219,0.00035616,14]
[359922582,1746426640922,-588.08,0.00035616,14]
[359922583,1746426640931,-402.62172312,0.00035616,14]
[359922584,1746426640941,-400.0,0.00035616,14]
[359922585,1746426640951,-400.0,0.00035616,14]
[359922586,1746426640961,-400.0,0.00035616,14]
[359922587,1746426640971,-400.0,0.00035616,14]
[359922588,1746426640980,-400.0,0.00035616,14]
[359922589,1746426640991,-400.0,0.00035616,14]
[359922590,1746426641001,-400.0,0.00035616,14]
[359922591,1746426641012,-400.0,0.00035616,14]
[359922592,1746426641023,-400.0,0.00035616,14]
[359922593,1746426641032,-400.0,0.00035616,14]
[359922594,1746426641042,-400.0,0.00035616,14]
[359922595,1746426641051,-400.0,0.00035616,14]
[359922596,1746426641061,-400.0,0.00035616,14]
[359922597,1746426641071,-400.0,0.00035616,14]
[359922598,1746426641081,-400.0,0.00035616,14]
[359922599,1746426641091,-400.0,0.00035616,14]
[359922600,1746426641100,-402.02,0.00035616,14]
[359922601,1746426641109,-400.0,0.00035616,14]
[359922602,1746426641119,-400.0,0.00035616,14]
[359922603,1746426641129,-242.4967869,0.00035616,14]
[359922604,1746426641139,-400.0,0.00035616,14]
[359922605,1746426641149,-400.0,0.00035616,14]
[359922606,1746426641158,-551.2,0.000357,30]
[359922607,1746426641169,-257.99815393,0.0003588,3]
[359922608,1746426641179,-400.0,0.0003589,14]
[359922609,1746426641188,-400.0,0.0003589,14]
[359922610,1746426641198,-436.91,0.0003589,14]
[359922611,1746426641208,-400.0,0.0003589,14]
[359922612,1746426641217,-400.0,0.0003589,14]
[359922613,1746426641227,-502.21434323,0.0003589,14]
[359922614,1746426641236,-400.0,0.0003589,14]
[359922615,1746426641246,-400.0,0.0003589,14]
[359922616,1746426641256,-400.0,0.0003589,14]
[359922617,1746426641266,-488.49,0.0003589,14]
[359922618,1746426641275,-400.0,0.0003589,14]
[359922619,1746426641285,-408.96820612,0.0003589,14]
[359922620,1746426641295,-400.0,0.0003589,14]
[359922621,1746426641304,-400.0,0.0003589,14]
[359922622,1746426641314,-470.69,0.0003589,14]
[359922623,1746426641324,-266.21,0.0003589,14]
[359922624,1746426641333,-400.0,0.0003589,14]
[359922625,1746426641342,-400.0,0.0003589,14]
[359922626,1746426641351,-400.0,0.0003589,14]
[359922627,1746426641361,-312.44,0.0003589,14]
[359922628,1746426641370,-400.0,0.0003589,14]
[359922629,1746426641379,-400.0,0.0003589,14]
[359922630,1746426641388,-400.0,0.0003589,14]
[359922631,1746426641398,-234.5,0.0003589,14]
[359922632,1746426641407,-272.77,0.0003589,14]
[359922633,1746426641417,-400.0,0.0003589,14]
[359922634,1746426641426,-459.58575224,0.0003589,14]
[359922635,1746426641435,-400.0,0.0003589,14]
[359922636,1746426641444,-400.0,0.0003589,14]
[359922637,1746426641453,-170.56,0.0003589,14]
[359922638,1746426641462,-400.0,0.0003589,14]
[359922639,1746426641471,-400.0,0.0003589,14]
[359922640,1746426641481,-400.0,0.0003589,14]
[359922641,1746426641490,-400.0,0.0003589,14]
[359922642,1746426641499,-400.0,0.0003589,14]
[359922643,1746426641508,-400.0,0.0003589,14]
[359922644,1746426641517,-400.0,0.0003589,14]
[359922645,1746426641527,-400.0,0.0003589,14]
[359922646,1746426641536,-400.0,0.0003589,14]
[359922647,1746426641545,-400.0,0.0003589,14]
[359922648,1746426641555,-400.0,0.0003589,14]
[359922649,1746426641564,-409.12,0.0003589,14]
[359922650,1746426641573,-400.0,0.0003589,14]
[359922651,1746426641583,-400.0,0.0003589,14]
[359922652,1746426641592,-458.2,0.0003589,14]
[359922653,1746426641601,-216.1830919,0.0003589,14]
[359922654,1746426641611,-203.88,0.0003589,14]
[359922655,1746426641621,-400.69511377,0.0003589,14]
[359922656,1746426641631,-481.02240411,0.0003589,14]
[359922657,1746426641641,-400.0,0.0003589,14]
[359922658,1746426641651,-313.84,0.0003589,14]
[359922659,1746426641660,-400.0,0.0003589,14]
[359922660,1746426641672,-400.0,0.0003589,14]
[359922661,1746426641683,-400.0,0.0003589,14]
[359922662,1746426641693,-400.0,0.0003589,14]
[359922663,1746426641703,-400.0,0.0003589,14]
[359922664,1746426641712,-400.0,0.0003589,14]
[359922665,1746426641723,-400.0,0.0003589,14]
[359922666,1746426641732,-400.0,0.0003589,14]
[359922667,1746426641742,-488.11,0.0003589,14]
[359922668,1746426641752,-400.0,0.0003589,14]
[359922669,1746426641763,-400.0,0.0003589,14]
[359922670,1746426641773,-600.69,0.0003589,14]
[359922671,1746426641783,-400.0,0.0003589,14]
[359922672,1746426641793,-212.51,0.0003589,14]
[359922673,1746426641803,-400.0,0.0003589,14]
[359922674,1746426641813,-879.3,0.0003589,14]
[359922675,1746426641822,-424.23,0.0003589,14]
[359922676,1746426641832,-400.0,0.0003589,14]
[359922677,1746426641842,-400.0,0.0003589,14]
[359922678,1746426641852,-400.0,0.0003589,14]
[359922679,1746426641862,-400.0,0.0003589,14]
[359922680,1746426641872,-400.0,0.0003589,14]